[Event "Titled Tuesday Blitz July 6 2021"]
[White "Priasmoro, Novendra"]
[Black "Grischuk, Alexander"]
[WhiteFideId "7105029"]
[BlackFideId "4126025"]
[WhiteElo "2309"]
[BlackElo "2765"]
[Result "1/2-1/2"]
[Round "11"]
[TimeControl "180+1"]
[Date "2021.07.06"]
[WhiteClock "0:00:16"]
[BlackClock "0:00:02"]

1. e4 {[%clk 0:03:00]}  e5 {[%clk 0:02:58]} 2. Nf3 {[%clk 0:03:01]}  Nc6 {[%clk 0:02:59]} 3. Bb5 {[%clk 0:03:01]}  Nf6 {[%clk 0:02:57]} 4. O-O {[%clk 0:03:01]}  Nxe4 {[%clk 0:02:56]} 5. Re1 {[%clk 0:03:01]}  Nd6 {[%clk 0:02:56]} 6. Nxe5 {[%clk 0:03:02]}  Be7 {[%clk 0:02:56]} 7. Bf1 {[%clk 0:03:01]}  Nf5 {[%clk 0:02:54]} 8. c3 {[%clk 0:02:57]}  O-O {[%clk 0:02:39]} 9. d4 {[%clk 0:02:57]}  Nxe5 {[%clk 0:02:34]} 10. Rxe5 {[%clk 0:02:58]}  d6 {[%clk 0:02:35]} 11. Re1 {[%clk 0:02:58]}  d5 {[%clk 0:02:34]} 12. Bf4 {[%clk 0:02:54]}  Bd6 {[%clk 0:02:27]} 13. Bxd6 {[%clk 0:02:50]}  Nxd6 {[%clk 0:02:28]} 14. Nd2 {[%clk 0:02:49]}  Bf5 {[%clk 0:02:23]} 15. Qf3 {[%clk 0:02:46]}  c6 {[%clk 0:02:23]} 16. Bd3 {[%clk 0:02:46]}  Qg5 {[%clk 0:02:11]} 17. Bxf5 {[%clk 0:02:24]}  Qxf5 {[%clk 0:02:11]} 18. Qxf5 {[%clk 0:02:23]}  Nxf5 {[%clk 0:02:12]} 19. Re2 {[%clk 0:02:18]}  Rfe8 {[%clk 0:02:05]} 20. Rae1 {[%clk 0:02:19]}  Rxe2 {[%clk 0:02:05]} 21. Rxe2 {[%clk 0:02:19]}  h5 {[%clk 0:02:04]} 22. g3 {[%clk 0:02:14]}  f6 {[%clk 0:02:03]} 23. h3 {[%clk 0:02:12]}  Kf7 {[%clk 0:02:02]} 24. Kg2 {[%clk 0:02:12]}  g5 {[%clk 0:02:00]} 25. g4 {[%clk 0:02:08]}  Nh4+ {[%clk 0:01:53]} 26. Kg3 {[%clk 0:02:08]}  Ng6 {[%clk 0:01:54]} 27. Re1 {[%clk 0:01:29]}  h4+ {[%clk 0:01:52]} 28. Kh2 {[%clk 0:01:27]}  Nf4 {[%clk 0:01:51]} 29. Re3 {[%clk 0:01:23]}  a5 {[%clk 0:01:47]} 30. Nb3 {[%clk 0:01:13]}  b6 {[%clk 0:01:34]} 31. Nc1 {[%clk 0:01:12]}  Re8 {[%clk 0:01:34]} 32. Kg1 {[%clk 0:00:59]}  a4 {[%clk 0:01:29]} 33. Kf1 {[%clk 0:00:56]}  c5 {[%clk 0:01:19]} 34. Rxe8 {[%clk 0:00:42]}  Kxe8 {[%clk 0:01:17]} 35. Ne2 {[%clk 0:00:40]}  Nd3 {[%clk 0:01:09]} 36. b3 {[%clk 0:00:40]}  a3 {[%clk 0:01:06]} 37. Kg2 {[%clk 0:00:28]}  Ne1+ {[%clk 0:01:05]} 38. Kf1 {[%clk 0:00:27]}  Nf3 {[%clk 0:00:59]} 39. Kg2 {[%clk 0:00:27]}  Nd2 {[%clk 0:00:47]} 40. Nc1 {[%clk 0:00:27]}  Kd7 {[%clk 0:00:41]} 41. f3 {[%clk 0:00:27]}  Nb1 {[%clk 0:00:34]} 42. Ne2 {[%clk 0:00:24]}  Nd2 {[%clk 0:00:16]} 43. Nc1 {[%clk 0:00:23]}  Nb1 {[%clk 0:00:04]} 44. Ne2 {[%clk 0:00:24]}  Kc6 {[%clk 0:00:04]} 45. Kf2 {[%clk 0:00:23]}  Nd2 {[%clk 0:00:04]} 46. Nc1 {[%clk 0:00:23]}  c4 {[%clk 0:00:02]} 47. b4 {[%clk 0:00:21]}  Nb1 {[%clk 0:00:02]} 48. Ne2 {[%clk 0:00:21]}  Nd2 {[%clk 0:00:02]} 49. Nc1 {[%clk 0:00:18]}  Nb1 {[%clk 0:00:02]} 50. Ne2 {[%clk 0:00:19]}  Nd2 {[%clk 0:00:02]} 51. Nc1 {[%clk 0:00:16]} 1/2-1/2


[Site "https://www.chess.com"]

[Event "Titled Tuesday Blitz July 6 2021"]
[White "Pruijssers, Roeland"]
[Black "Janaszak, Dawid"]
[WhiteFideId "1013068"]
[BlackFideId "1119206"]
[WhiteElo "2545"]
[BlackElo "2332"]
[Result "1-0"]
[Round "11"]
[TimeControl "180+1"]
[Date "2021.07.06"]
[WhiteClock "0:00:10"]
[BlackClock "0:00:01"]

1. e4 {[%clk 0:03:00]}  c5 {[%clk 0:02:59]} 2. Nf3 {[%clk 0:03:00]}  Nc6 {[%clk 0:02:59]} 3. Bb5 {[%clk 0:03:00]}  g6 {[%clk 0:02:57]} 4. Bxc6 {[%clk 0:03:00]}  dxc6 {[%clk 0:02:58]} 5. O-O {[%clk 0:03:00]}  Bg7 {[%clk 0:02:58]} 6. d3 {[%clk 0:02:59]}  e5 {[%clk 0:02:55]} 7. Be3 {[%clk 0:02:30]}  Qe7 {[%clk 0:02:52]} 8. a4 {[%clk 0:02:25]}  Nf6 {[%clk 0:02:46]} 9. h3 {[%clk 0:02:23]}  Nd7 {[%clk 0:02:43]} 10. a5 {[%clk 0:02:23]}  Nf8 {[%clk 0:02:42]} 11. Nbd2 {[%clk 0:02:09]}  Ne6 {[%clk 0:02:34]} 12. c3 {[%clk 0:02:09]}  f5 {[%clk 0:02:22]} 13. exf5 {[%clk 0:02:07]}  gxf5 {[%clk 0:02:23]} 14. Nc4 {[%clk 0:02:07]}  f4 {[%clk 0:02:10]} 15. Bd2 {[%clk 0:02:04]}  Ng5 {[%clk 0:01:49]} 16. Nfxe5 {[%clk 0:02:01]}  O-O {[%clk 0:01:46]} 17. Re1 {[%clk 0:01:57]}  Qf6 {[%clk 0:01:16]} 18. Qh5 {[%clk 0:01:54]}  Bf5 {[%clk 0:01:12]} 19. Bxf4 {[%clk 0:01:46]}  Ne6 {[%clk 0:00:58]} 20. Bg3 {[%clk 0:01:40]}  Kh8 {[%clk 0:00:46]} 21. Nd7 {[%clk 0:01:36]}  Qf7 {[%clk 0:00:44]} 22. Qxf7 {[%clk 0:01:27]}  Rxf7 {[%clk 0:00:45]} 23. Nd6 {[%clk 0:01:21]}  Rxd7 {[%clk 0:00:27]} 24. Nxf5 {[%clk 0:01:21]}  Ng5 {[%clk 0:00:21]} 25. Bd6 {[%clk 0:01:02]}  Bf8 {[%clk 0:00:16]} 26. Be5+ {[%clk 0:00:50]}  Kg8 {[%clk 0:00:15]} 27. Re3 {[%clk 0:00:49]}  Kf7 {[%clk 0:00:12]} 28. Rae1 {[%clk 0:00:42]}  Re8 {[%clk 0:00:12]} 29. Bf4 {[%clk 0:00:36]}  Rxe3 {[%clk 0:00:11]} 30. Rxe3 {[%clk 0:00:36]}  Ne6 {[%clk 0:00:12]} 31. Be5 {[%clk 0:00:32]}  b5 {[%clk 0:00:11]} 32. g4 {[%clk 0:00:27]}  Ng5 {[%clk 0:00:08]} 33. Kg2 {[%clk 0:00:26]}  Ne6 {[%clk 0:00:06]} 34. f4 {[%clk 0:00:23]}  c4 {[%clk 0:00:06]} 35. d4 {[%clk 0:00:21]}  c5 {[%clk 0:00:07]} 36. Re4 {[%clk 0:00:17]}  cxd4 {[%clk 0:00:06]} 37. Nxd4 {[%clk 0:00:17]}  Nc5 {[%clk 0:00:06]} 38. Re2 {[%clk 0:00:17]}  Nd3 {[%clk 0:00:06]} 39. Nxb5 {[%clk 0:00:13]}  Bc5 {[%clk 0:00:02]} 40. Kf3 {[%clk 0:00:11]}  Rb7 {[%clk 0:00:02]} 41. Nd6+ {[%clk 0:00:10]}  Bxd6 {[%clk 0:00:01]} 42. Bxd6 {[%clk 0:00:11]}  Nxb2 {[%clk 0:00:01]} 43. f5 {[%clk 0:00:10]} 1-0


[Site "https://www.chess.com"]

[Event "Titled Tuesday Blitz July 6 2021"]
[White "Quintiliano Pinto, Renato R."]
[Black "Sawlin, Leonid"]
[WhiteFideId "2117568"]
[BlackFideId "4689542"]
[WhiteElo "2439"]
[BlackElo "2412"]
[Result "1-0"]
[Round "11"]
[TimeControl "180+1"]
[Date "2021.07.06"]
[WhiteClock "0:01:11"]
[BlackClock "0:02:15"]

1. d4 {[%clk 0:03:00]}  e6 {[%clk 0:02:54]} 2. c4 {[%clk 0:02:57]}  d5 {[%clk 0:02:55]} 3. Nc3 {[%clk 0:02:56]}  Nf6 {[%clk 0:02:55]} 4. Nf3 {[%clk 0:02:57]}  Be7 {[%clk 0:02:56]} 5. Bg5 {[%clk 0:02:56]}  O-O {[%clk 0:02:57]} 6. e3 {[%clk 0:02:56]}  h6 {[%clk 0:02:58]} 7. Bh4 {[%clk 0:02:55]}  Ne4 {[%clk 0:02:58]} 8. Bxe7 {[%clk 0:02:54]}  Qxe7 {[%clk 0:02:59]} 9. Rc1 {[%clk 0:02:55]}  Nxc3 {[%clk 0:02:53]} 10. Rxc3 {[%clk 0:02:54]}  dxc4 {[%clk 0:02:53]} 11. Bxc4 {[%clk 0:02:54]}  Nd7 {[%clk 0:02:53]} 12. O-O {[%clk 0:02:52]}  c5 {[%clk 0:02:53]} 13. Qc2 {[%clk 0:02:52]}  b6 {[%clk 0:02:53]} 14. dxc5 {[%clk 0:02:41]}  Nxc5 {[%clk 0:02:52]} 15. b4 {[%clk 0:02:40]}  Nd7 {[%clk 0:02:52]} 16. a3 {[%clk 0:01:58]}  Bb7 {[%clk 0:02:51]} 17. Be2 {[%clk 0:01:58]}  Rac8 {[%clk 0:02:51]} 18. Rd1 {[%clk 0:01:58]}  Nf6 {[%clk 0:02:50]} 19. Nd4 {[%clk 0:01:53]}  Nd5 {[%clk 0:02:45]} 20. Rxc8 {[%clk 0:01:46]}  Rxc8 {[%clk 0:02:45]} 21. Qb2 {[%clk 0:01:46]}  Nc3 {[%clk 0:02:43]} 22. Re1 {[%clk 0:01:44]}  Nxe2+ {[%clk 0:02:43]} 23. Qxe2 {[%clk 0:01:43]}  Qg5 {[%clk 0:02:42]} 24. f3 {[%clk 0:01:28]}  Rc3 {[%clk 0:02:36]} 25. a4 {[%clk 0:01:26]}  Qd5 {[%clk 0:02:23]} 26. Nb5 {[%clk 0:01:11]}  Ra3 {[%clk 0:02:15]} 27. Nxa3 {[%clk 0:01:11]} 1-0


[Site "https://www.chess.com"]

[Event "Titled Tuesday Blitz July 6 2021"]
[White "Quparadze, Giga"]
[Black "Timmermans, Mark"]
[WhiteFideId "13602250"]
[BlackFideId "1026399"]
[WhiteElo "2658"]
[BlackElo "2460"]
[Result "1/2-1/2"]
[Round "11"]
[TimeControl "180+1"]
[Date "2021.07.06"]
[WhiteClock "0:00:50"]
[BlackClock "0:01:14"]

1. e4 {[%clk 0:03:00]}  e5 {[%clk 0:02:55]} 2. Nf3 {[%clk 0:03:00]}  Nc6 {[%clk 0:02:55]} 3. Bb5 {[%clk 0:03:00]}  f5 {[%clk 0:02:55]} 4. d3 {[%clk 0:02:59]}  fxe4 {[%clk 0:02:55]} 5. dxe4 {[%clk 0:03:00]}  Nf6 {[%clk 0:02:56]} 6. Bxc6 {[%clk 0:03:01]}  bxc6 {[%clk 0:02:55]} 7. O-O {[%clk 0:03:01]}  d6 {[%clk 0:02:56]} 8. Qd3 {[%clk 0:02:59]}  Be7 {[%clk 0:02:56]} 9. Nbd2 {[%clk 0:02:55]}  O-O {[%clk 0:02:55]} 10. Qc4+ {[%clk 0:02:55]}  Kh8 {[%clk 0:02:56]} 11. Qxc6 {[%clk 0:02:55]}  Rb8 {[%clk 0:02:56]} 12. b3 {[%clk 0:02:52]}  Rb4 {[%clk 0:02:39]} 13. Qc3 {[%clk 0:02:45]}  c5 {[%clk 0:02:34]} 14. Re1 {[%clk 0:02:44]}  Bb7 {[%clk 0:02:31]} 15. Ng5 {[%clk 0:02:37]}  Nd5 {[%clk 0:02:31]} 16. exd5 {[%clk 0:02:35]}  Bxg5 {[%clk 0:02:31]} 17. Nc4 {[%clk 0:02:34]}  Bxc1 {[%clk 0:02:27]} 18. Raxc1 {[%clk 0:02:35]}  Bxd5 {[%clk 0:02:27]} 19. Rcd1 {[%clk 0:02:33]}  Bxc4 {[%clk 0:02:26]} 20. bxc4 {[%clk 0:02:34]}  Qf6 {[%clk 0:02:18]} 21. f4 {[%clk 0:02:30]}  exf4 {[%clk 0:01:53]} 22. Qxf6 {[%clk 0:02:29]}  gxf6 {[%clk 0:01:54]} 23. Rxd6 {[%clk 0:02:29]}  Rxc4 {[%clk 0:01:52]} 24. Rd7 {[%clk 0:02:29]}  Rxc2 {[%clk 0:01:37]} 25. Ree7 {[%clk 0:02:28]}  Rb8 {[%clk 0:01:37]} 26. Rxh7+ {[%clk 0:02:28]}  Kg8 {[%clk 0:01:37]} 27. Rdg7+ {[%clk 0:02:20]}  Kf8 {[%clk 0:01:37]} 28. h4 {[%clk 0:02:16]}  f3 {[%clk 0:01:30]} 29. Kh2 {[%clk 0:02:05]}  f2 {[%clk 0:01:21]} 30. Rf7+ {[%clk 0:02:00]}  Kg8 {[%clk 0:01:22]} 31. Rfg7+ {[%clk 0:01:57]}  Kf8 {[%clk 0:01:22]} 32. Rxa7 {[%clk 0:01:43]}  Kg8 {[%clk 0:01:19]} 33. Rhg7+ {[%clk 0:01:42]}  Kh8 {[%clk 0:01:16]} 34. Rh7+ {[%clk 0:01:41]}  Kg8 {[%clk 0:01:17]} 35. Rag7+ {[%clk 0:01:40]}  Kf8 {[%clk 0:01:17]} 36. Rd7 {[%clk 0:01:32]}  Kg8 {[%clk 0:01:14]} 37. Rdg7+ {[%clk 0:01:22]}  Kf8 {[%clk 0:01:14]} 38. Rf7+ {[%clk 0:00:54]}  Kg8 {[%clk 0:01:14]} 39. Rfg7+ {[%clk 0:00:50]} 1/2-1/2


[Site "https://www.chess.com"]

[Event "Titled Tuesday Blitz July 6 2021"]
[White "Salem, A.R. Saleh"]
[Black "Kamsky, Gata"]
[WhiteFideId "9301348"]
[BlackFideId "2000024"]
[WhiteElo "2642"]
[BlackElo "2644"]
[Result "0-1"]
[Round "11"]
[TimeControl "180+1"]
[Date "2021.07.06"]
[WhiteClock "0:00:02"]
[BlackClock "0:00:04"]

1. d4 {[%clk 0:03:00]}  Nf6 {[%clk 0:02:58]} 2. c4 {[%clk 0:03:01]}  e6 {[%clk 0:02:59]} 3. Nc3 {[%clk 0:03:02]}  Bb4 {[%clk 0:02:58]} 4. e3 {[%clk 0:03:02]}  O-O {[%clk 0:02:57]} 5. Bd3 {[%clk 0:03:03]}  d5 {[%clk 0:02:55]} 6. Nf3 {[%clk 0:03:04]}  c5 {[%clk 0:02:42]} 7. O-O {[%clk 0:03:04]}  dxc4 {[%clk 0:02:42]} 8. Bxc4 {[%clk 0:03:05]}  Nbd7 {[%clk 0:02:42]} 9. Bd3 {[%clk 0:03:03]}  cxd4 {[%clk 0:02:16]} 10. exd4 {[%clk 0:03:02]}  b6 {[%clk 0:02:02]} 11. a3 {[%clk 0:02:58]}  Be7 {[%clk 0:02:01]} 12. Re1 {[%clk 0:02:45]}  Bb7 {[%clk 0:02:01]} 13. Bf4 {[%clk 0:02:45]}  a6 {[%clk 0:01:49]} 14. Qe2 {[%clk 0:02:26]}  b5 {[%clk 0:01:48]} 15. Rad1 {[%clk 0:02:27]}  Nd5 {[%clk 0:01:44]} 16. Nxd5 {[%clk 0:02:19]}  Bxd5 {[%clk 0:01:44]} 17. Ne5 {[%clk 0:02:12]}  Rc8 {[%clk 0:01:36]} 18. Qh5 {[%clk 0:02:03]}  f5 {[%clk 0:01:30]} 19. Re3 {[%clk 0:01:59]}  Nxe5 {[%clk 0:01:25]} 20. dxe5 {[%clk 0:01:55]}  g6 {[%clk 0:01:17]} 21. Rg3 {[%clk 0:01:47]}  Rf7 {[%clk 0:01:13]} 22. Qe2 {[%clk 0:01:20]}  Qc7 {[%clk 0:01:10]} 23. Qe3 {[%clk 0:01:07]}  Bc5 {[%clk 0:01:04]} 24. Qe1 {[%clk 0:01:03]}  Be7 {[%clk 0:01:03]} 25. Qe3 {[%clk 0:01:03]}  Qc5 {[%clk 0:00:54]} 26. Qe2 {[%clk 0:01:01]}  Qd4 {[%clk 0:00:40]} 27. Bd2 {[%clk 0:00:26]}  Qxb2 {[%clk 0:00:23]} 28. h4 {[%clk 0:00:19]}  Bxh4 {[%clk 0:00:20]} 29. Rh3 {[%clk 0:00:19]}  Be7 {[%clk 0:00:20]} 30. a4 {[%clk 0:00:16]}  bxa4 {[%clk 0:00:18]} 31. Rb1 {[%clk 0:00:17]}  Qa2 {[%clk 0:00:17]} 32. Qe1 {[%clk 0:00:08]}  a3 {[%clk 0:00:16]} 33. Bxa6 {[%clk 0:00:09]}  Ra8 {[%clk 0:00:15]} 34. Bf1 {[%clk 0:00:08]}  Qc2 {[%clk 0:00:14]} 35. Rc3 {[%clk 0:00:08]}  Qe4 {[%clk 0:00:13]} 36. Re3 {[%clk 0:00:08]}  Qg4 {[%clk 0:00:12]} 37. Ra1 {[%clk 0:00:09]}  a2 {[%clk 0:00:12]} 38. Rg3 {[%clk 0:00:09]}  Qd4 {[%clk 0:00:11]} 39. Rd3 {[%clk 0:00:09]}  Qb6 {[%clk 0:00:11]} 40. Be3 {[%clk 0:00:09]}  Bc5 {[%clk 0:00:11]} 41. Bh6 {[%clk 0:00:07]}  Rb7 {[%clk 0:00:10]} 42. Rxd5 {[%clk 0:00:07]}  exd5 {[%clk 0:00:10]} 43. Qd2 {[%clk 0:00:07]}  Qb2 {[%clk 0:00:09]} 44. Qxd5+ {[%clk 0:00:07]}  Kh8 {[%clk 0:00:09]} 45. Rd1 {[%clk 0:00:06]}  Bf8 {[%clk 0:00:06]} 46. Bxf8 {[%clk 0:00:03]}  Rxf8 {[%clk 0:00:05]} 47. Qd6 {[%clk 0:00:03]}  Rbb8 {[%clk 0:00:05]} 48. Qa6 {[%clk 0:00:02]}  a1=Q {[%clk 0:00:04]} 0-1


[Site "https://www.chess.com"]

[Event "Titled Tuesday Blitz July 6 2021"]
[White "Samunenkov, Ihor"]
[Black "Pridorozhni, Aleksei"]
[WhiteFideId "14187086"]
[BlackFideId "4127870"]
[WhiteElo "2281"]
[BlackElo "2565"]
[Result "0-1"]
[Round "11"]
[TimeControl "180+1"]
[Date "2021.07.06"]
[WhiteClock "0:00:01"]
[BlackClock "0:01:18"]

1. d4 {[%clk 0:03:00]}  d5 {[%clk 0:02:57]} 2. Nf3 {[%clk 0:03:00]}  c6 {[%clk 0:02:56]} 3. g3 {[%clk 0:03:00]}  Bg4 {[%clk 0:02:56]} 4. Bg2 {[%clk 0:02:57]}  Nd7 {[%clk 0:02:56]} 5. c4 {[%clk 0:02:56]}  e6 {[%clk 0:02:56]} 6. h3 {[%clk 0:02:57]}  Bh5 {[%clk 0:02:55]} 7. O-O {[%clk 0:02:56]}  Ngf6 {[%clk 0:02:55]} 8. cxd5 {[%clk 0:02:47]}  exd5 {[%clk 0:02:55]} 9. Qb3 {[%clk 0:02:36]}  Qb6 {[%clk 0:02:53]} 10. Qe3+ {[%clk 0:02:37]}  Be7 {[%clk 0:02:52]} 11. Nh4 {[%clk 0:02:37]}  Kf8 {[%clk 0:02:48]} 12. g4 {[%clk 0:02:26]}  Bg6 {[%clk 0:02:47]} 13. Nxg6+ {[%clk 0:02:26]}  hxg6 {[%clk 0:02:47]} 14. Nc3 {[%clk 0:02:26]}  Re8 {[%clk 0:02:44]} 15. Qd3 {[%clk 0:02:26]}  Bd6 {[%clk 0:02:40]} 16. g5 {[%clk 0:01:42]}  Nh5 {[%clk 0:02:38]} 17. e3 {[%clk 0:01:35]}  Qd8 {[%clk 0:02:34]} 18. e4 {[%clk 0:01:24]}  dxe4 {[%clk 0:02:31]} 19. Nxe4 {[%clk 0:01:25]}  Bf4 {[%clk 0:02:31]} 20. Qf3 {[%clk 0:01:18]}  Bxc1 {[%clk 0:02:26]} 21. Raxc1 {[%clk 0:01:19]}  Nb6 {[%clk 0:02:25]} 22. Rfe1 {[%clk 0:01:06]}  Nd5 {[%clk 0:02:23]} 23. Nc5 {[%clk 0:01:05]}  Rxe1+ {[%clk 0:02:20]} 24. Rxe1 {[%clk 0:01:05]}  Nhf4 {[%clk 0:02:01]} 25. Nxb7 {[%clk 0:00:46]}  Qxg5 {[%clk 0:01:55]} 26. Nd6 {[%clk 0:00:31]}  Ne7 {[%clk 0:01:54]} 27. Qg4 {[%clk 0:00:27]}  Qxg4 {[%clk 0:01:49]} 28. hxg4 {[%clk 0:00:28]}  Ne6 {[%clk 0:01:47]} 29. Re4 {[%clk 0:00:23]}  g5 {[%clk 0:01:40]} 30. Bf1 {[%clk 0:00:20]}  g6 {[%clk 0:01:33]} 31. Bc4 {[%clk 0:00:20]}  Nd5 {[%clk 0:01:34]} 32. Bxd5 {[%clk 0:00:15]}  cxd5 {[%clk 0:01:34]} 33. Re5 {[%clk 0:00:16]}  Rh4 {[%clk 0:01:34]} 34. f3 {[%clk 0:00:08]}  Rh3 {[%clk 0:01:33]} 35. Kf2 {[%clk 0:00:05]}  Nxd4 {[%clk 0:01:32]} 36. Rxd5 {[%clk 0:00:05]}  Rxf3+ {[%clk 0:01:32]} 37. Kg2 {[%clk 0:00:05]}  Rf4 {[%clk 0:01:30]} 38. Nc8 {[%clk 0:00:05]}  Rxg4+ {[%clk 0:01:29]} 39. Kh3 {[%clk 0:00:05]}  Rh4+ {[%clk 0:01:29]} 40. Kg3 {[%clk 0:00:06]}  Nf5+ {[%clk 0:01:29]} 41. Kf3 {[%clk 0:00:04]}  g4+ {[%clk 0:01:28]} 42. Kf2 {[%clk 0:00:03]}  Rh2+ {[%clk 0:01:28]} 43. Kg1 {[%clk 0:00:03]}  Rxb2 {[%clk 0:01:27]} 44. a4 {[%clk 0:00:03]}  Rb1+ {[%clk 0:01:24]} 45. Kf2 {[%clk 0:00:03]}  g3+ {[%clk 0:01:24]} 46. Kf3 {[%clk 0:00:03]}  Kg7 {[%clk 0:01:24]} 47. Rd2 {[%clk 0:00:01]}  Ra1 {[%clk 0:01:22]} 48. Nxa7 {[%clk 0:00:01]}  Ra3+ {[%clk 0:01:21]} 49. Kg2 {[%clk 0:00:02]}  Rxa4 {[%clk 0:01:22]} 50. Nc6 {[%clk 0:00:02]}  Ra3 {[%clk 0:01:21]} 51. Nd8 {[%clk 0:00:01]}  Ne3+ {[%clk 0:01:19]} 52. Kg1 {[%clk 0:00:01]}  Ra1+ {[%clk 0:01:18]} 0-1


[Site "https://www.chess.com"]

[Event "Titled Tuesday Blitz July 6 2021"]
[White "Sanchez Alvares, Kelvin Antonio"]
[Black "davigator"]
[WhiteFideId "3906680"]
[WhiteElo "2247"]
[BlackElo "2396"]
[Result "1-0"]
[Round "11"]
[TimeControl "180+1"]
[Date "2021.07.06"]
[WhiteClock "0:00:17"]
[BlackClock "0:00:33"]

1. d4 {[%clk 0:03:00]}  Nf6 {[%clk 0:02:59]} 2. c4 {[%clk 0:02:47]}  e6 {[%clk 0:02:59]} 3. Nf3 {[%clk 0:02:45]}  Bb4+ {[%clk 0:02:58]} 4. Nbd2 {[%clk 0:02:43]}  b6 {[%clk 0:02:58]} 5. g3 {[%clk 0:02:43]}  Bb7 {[%clk 0:02:55]} 6. Bg2 {[%clk 0:02:43]}  O-O {[%clk 0:02:55]} 7. O-O {[%clk 0:02:43]}  d5 {[%clk 0:02:55]} 8. Ne5 {[%clk 0:02:42]}  Nbd7 {[%clk 0:02:53]} 9. Ndf3 {[%clk 0:02:42]}  Bd6 {[%clk 0:02:50]} 10. b3 {[%clk 0:02:39]}  Rc8 {[%clk 0:02:47]} 11. Bb2 {[%clk 0:02:38]}  c5 {[%clk 0:02:45]} 12. dxc5 {[%clk 0:02:38]}  Nxc5 {[%clk 0:02:44]} 13. Rc1 {[%clk 0:02:34]}  Qe7 {[%clk 0:02:42]} 14. Qc2 {[%clk 0:02:28]}  Nce4 {[%clk 0:02:39]} 15. Qb1 {[%clk 0:02:26]}  h6 {[%clk 0:02:38]} 16. Rfd1 {[%clk 0:02:25]}  Rfd8 {[%clk 0:02:36]} 17. e3 {[%clk 0:02:23]}  Bb4 {[%clk 0:02:31]} 18. cxd5 {[%clk 0:02:15]}  Bxd5 {[%clk 0:02:28]} 19. Rxc8 {[%clk 0:02:09]}  Rxc8 {[%clk 0:02:27]} 20. Nd4 {[%clk 0:01:59]}  Bd6 {[%clk 0:02:17]} 21. Nc4 {[%clk 0:01:54]}  Bb4 {[%clk 0:02:14]} 22. a3 {[%clk 0:01:51]}  Bc5 {[%clk 0:02:14]} 23. Rc1 {[%clk 0:01:33]}  Rd8 {[%clk 0:02:05]} 24. b4 {[%clk 0:01:31]}  Bd6 {[%clk 0:02:03]} 25. Nxd6 {[%clk 0:01:30]}  Qxd6 {[%clk 0:02:02]} 26. Nb5 {[%clk 0:01:28]}  Qb8 {[%clk 0:02:02]} 27. Nc7 {[%clk 0:01:23]}  Bb7 {[%clk 0:02:02]} 28. Nb5 {[%clk 0:01:14]}  Nd2 {[%clk 0:01:53]} 29. Qc2 {[%clk 0:01:05]}  Bxg2 {[%clk 0:01:52]} 30. Kxg2 {[%clk 0:01:05]}  Qb7+ {[%clk 0:01:43]} 31. Qc6 {[%clk 0:01:03]}  Qxc6+ {[%clk 0:01:43]} 32. Rxc6 {[%clk 0:01:02]}  Rd7 {[%clk 0:01:39]} 33. Bxf6 {[%clk 0:01:00]}  gxf6 {[%clk 0:01:39]} 34. Rc8+ {[%clk 0:00:57]}  Kg7 {[%clk 0:01:38]} 35. Ra8 {[%clk 0:00:55]}  Nc4 {[%clk 0:01:38]} 36. a4 {[%clk 0:00:52]}  Nb2 {[%clk 0:01:34]} 37. a5 {[%clk 0:00:50]}  bxa5 {[%clk 0:01:23]} 38. bxa5 {[%clk 0:00:51]}  Nc4 {[%clk 0:01:20]} 39. a6 {[%clk 0:00:51]}  Rd2 {[%clk 0:01:20]} 40. Rxa7 {[%clk 0:00:48]}  Nxe3+ {[%clk 0:01:18]} 41. Kf3 {[%clk 0:00:47]}  Nd5 {[%clk 0:01:17]} 42. Rb7 {[%clk 0:00:46]}  Ra2 {[%clk 0:01:12]} 43. a7 {[%clk 0:00:46]}  Nb4 {[%clk 0:01:02]} 44. Rb8 {[%clk 0:00:43]}  Nd3 {[%clk 0:00:59]} 45. a8=Q {[%clk 0:00:42]}  Rxa8 {[%clk 0:00:59]} 46. Rxa8 {[%clk 0:00:42]}  f5 {[%clk 0:00:59]} 47. Ra7 {[%clk 0:00:41]}  Kf6 {[%clk 0:00:57]} 48. Nd6 {[%clk 0:00:41]}  Ne5+ {[%clk 0:00:57]} 49. Kg2 {[%clk 0:00:41]}  h5 {[%clk 0:00:58]} 50. f4 {[%clk 0:00:40]}  Ng4 {[%clk 0:00:57]} 51. Rxf7+ {[%clk 0:00:39]}  Kg6 {[%clk 0:00:57]} 52. Ra7 {[%clk 0:00:39]}  h4 {[%clk 0:00:57]} 53. Ra6 {[%clk 0:00:35]}  hxg3 {[%clk 0:00:56]} 54. hxg3 {[%clk 0:00:35]}  Kf6 {[%clk 0:00:56]} 55. Nc4 {[%clk 0:00:31]}  Ke7 {[%clk 0:00:52]} 56. Ne5 {[%clk 0:00:30]}  Nf6 {[%clk 0:00:52]} 57. Ra7+ {[%clk 0:00:30]}  Kd6 {[%clk 0:00:52]} 58. Nf3 {[%clk 0:00:28]}  Ng4 {[%clk 0:00:51]} 59. Ra6+ {[%clk 0:00:27]}  Kd5 {[%clk 0:00:50]} 60. Ng5 {[%clk 0:00:26]}  e5 {[%clk 0:00:50]} 61. Ra5+ {[%clk 0:00:26]}  Kd4 {[%clk 0:00:46]} 62. Nf3+ {[%clk 0:00:25]}  Ke3 {[%clk 0:00:46]} 63. Nxe5 {[%clk 0:00:26]}  Nf6 {[%clk 0:00:45]} 64. Nc4+ {[%clk 0:00:24]}  Ke4 {[%clk 0:00:45]} 65. Re5+ {[%clk 0:00:22]}  Kd4 {[%clk 0:00:45]} 66. Rxf5 {[%clk 0:00:22]}  Ng4 {[%clk 0:00:45]} 67. Rg5 {[%clk 0:00:20]}  Nf6 {[%clk 0:00:43]} 68. Nd6 {[%clk 0:00:19]}  Ke3 {[%clk 0:00:40]} 69. Re5+ {[%clk 0:00:18]}  Kd4 {[%clk 0:00:38]} 70. Kf3 {[%clk 0:00:18]}  Nd7 {[%clk 0:00:38]} 71. Rb5 {[%clk 0:00:17]}  Nf6 {[%clk 0:00:35]} 72. g4 {[%clk 0:00:17]}  Nd7 {[%clk 0:00:34]} 73. g5 {[%clk 0:00:17]}  Nf8 {[%clk 0:00:33]} 74. f5 {[%clk 0:00:17]} 1-0


[Site "https://www.chess.com"]